Workbook

Sheet PFP1
A1: PROPOSTA FINANCEIRA DO PROJETO | H1: CODIGO:
H2: PFP-1
A3: NOME DA EMPRESA:
A5: PROJETO: | D5: CONTRATANTE: | H5: EDITAL:
A6: PRESTAÇÃO DE SERVIÇOS DE APOIO TÉCNICO, APOIO À FISCALIZAÇÃO E SUPERVISÃO TÉCNICA, VISANDO A IMPLANTAÇÃO E ACOMPANHAMENTO DE AÇÕES DE DESENVOLVIMENTO REGIONAL NA ÁREA DE ATUAÇÃO DA CODEVASF NOS ESTADOS DO PARÁ, TOCANTINS, GOIÁS, MATO GROSSO, AMAPÁ, CEARÁ, RIO GRANDE DO NORTE, PARÁIBA E NO DISTRITO FEDERAL. | D6: CODEVASF (SEDE)
A7: Cod. | B7: Categoria / Insumo | C7: Uni | D7: Qde | E7: CUD | F7: PU | G7: FatorK | H7: CT | I7: PT
A8: MO | B8: Mão de Obra com Vínculo | H8: =SUM(H9:H12) -> 2020555.68 | I8: =SUM(I9:I12) -> 3337373.52
A9: P1 | B9: Profissional Pleno (Coordenador) | C9: mês | D9: =DQC!D7 -> 12 | E9: 15304.96 | F9: =ROUND(E9*G9,2) -> 36214.6 | G9: ='PFP2.1_FatorKa'!$E$37 -> 2.3662 | H9: =ROUND(D9*E9,2) -> 183659.52 | I9: =ROUND(F9*D9,2) -> 434575.2
A10: P2 | B10: Profissional Medio | C10: mês | D10: =DQC!D8 -> 12 | E10: 11711.04 | F10: =ROUND(E10*G10,2) -> 27710.66 | G10: ='PFP2.1_FatorKa'!$E$37 -> 2.3662 | H10: =ROUND(D10*E10,2) -> 140532.48 | I10: =ROUND(F10*D10,2) -> 332527.92
A11: P3 | B11: Profissional Junior | C11: mês | D11: =DQC!D9 -> 72 | E11: 9724 | F11: 23008.93 | G11: ='PFP2.1_FatorKa'!$E$37 -> 2.3662 | H11: 700128 | I11: 1656642.96
A12: T1 | B12: Técnico Pleno | C12: mês | D12: =DQC!D10 -> 72 | E12: 5362.72 | F12: 12689.27 | G12: ='PFP2.1_FatorKa'!$E$37 -> 2.3662 | H12: 996235.68 | I12: =ROUND(F12*D12,2) -> 913627.44
A13: MO | B13: Mão de Obra sem Vínculo | H13: =SUM(H14:H15) -> 970738.56 | I13: =SUM(I14:I15) -> 1656506.28
A14: P2 | B14: Profissional Medio | C14: mês | D14: =DQC!D12 -> 12 | E14: 11711.04 | F14: =ROUND(E14*G14,2) -> 19853.73 | G14: ='PFP2.2_FatorKb'!$E$37 -> 1.6953 | H14: 134154.24 | I14: =ROUND(F14*D14,2) -> 238244.76
A15: T1 | B15: Técnico Pleno | C15: mês | D15: =DQC!D13 -> 156 | E15: 5362.72 | F15: 9091.42 | G15: ='PFP2.2_FatorKb'!$E$37 -> 1.6953 | H15: =ROUND(D15*E15,2) -> 836584.32 | I15: =ROUND(F15*D15,2) -> 1418261.52
A16: DPV | B16: Diárias, Passagens e Veículos | H16: =SUM(H17:H20) -> 2217229.28 | I16: =SUM(I17:I20) -> 2784421.36
A17: D | B17: Diárias | C17: dia | D17: =DQC!D15 -> 6540 | E17: 239 | F17: =ROUND(E17*G17,2) -> 300.14 | G17: =PFP3_FatorKc!$E$19 -> 1.2558 | H17: =ROUND(D17*E17,2) -> 1563060 | I17: =ROUND(F17*D17,2) -> 1962915.6
A18: P | B18: Passagens Aéreas (ida e volta) | C18: un | D18: =DQC!D16+DQC!D17+DQC!D18+DQC!D19+DQC!D20+DQC!D21 -> 48 | E18: =DQC!E16+DQC!E17+DQC!E18+DQC!E19+DQC!E20+DQC!E21 -> 3963.94 | F18: =DQC!F16+DQC!F17+DQC!F18+DQC!F19+DQC!F20+DQC!F21 -> 4977.92 | G18: =PFP3_FatorKc!$E$19 -> 1.2558 | H18: =DQC!H16+DQC!H17+DQC!H18+DQC!H19+DQC!H20+DQC!H21 -> 31711.52 | I18: =DQC!I16+DQC!I17+DQC!I18+DQC!I19+DQC!I20+DQC!I21 -> 39823.36
A19: V1 | B19: Saveiro Robust 1.6 Total Flex 8V ou similar | C19: mês | D19: =DQC!D22 -> 60 | E19: 3311.9 | F19: =ROUND(E19*G19,2) -> 4159.08 | G19: =PFP3_FatorKc!$E$19 -> 1.2558 | H19: =ROUND(D19*E19,2) -> 198714 | I19: =ROUND(F19*D19,2) -> 249544.8
A20: V2 | B20: Hilux CS 4x4 2.8 TDI Diesel Mec. ou similar | C20: mês | D20: =DQC!D23 -> 72 | E20: 5885.33 | F20: =ROUND(E20*G20,2) -> 7390.8 | G20: =PFP3_FatorKc!$E$19 -> 1.2558 | H20: =ROUND(D20*E20,2) -> 423743.76 | I20: =ROUND(F20*D20,2) -> 532137.6
A21: EM | B21: Equipamentos e Materiais | H21: =SUM(H22:H23) -> 128808.13 | I21: =SUM(I22:I23) -> 161757.22
A22: EM1 | B22: Notebook tela 14”, HD 1TB, memória RAM de 8GB | C22: un | D22: =DQC!D25 -> 28 | E22: 2752.31 | F22: =ROUND(E22*G22,2) -> 3456.35 | G22: =PFP3_FatorKc!$E$19 -> 1.2558 | H22: =ROUND(D22*E22,2) -> 77064.68 | I22: =ROUND(F22*D22,2) -> 96777.8
A23: EM2 | B23: Navegador GPS/ GLONASS, resolução visor de 160 X 240, tamanho de display 2,6”, memória interna 8GB, slot cartão de memória microSD, prova d'água, conexão bluetooth, com câmera 8MP | C23: un | D23: =DQC!D26 -> 11 | E23: 4703.95 | F23: 5907.22 | G23: =PFP3_FatorKc!$E$19 -> 1.2558 | H23: 51743.45 | I23: 64979.42
A24: TOTAL DOS CUSTOS DIRETOS | F24: =H8+H16+H13+H21 -> 5337331.65
A25: TOTAL DOS ENCARGOS E DESPESAS DIVERSAS | F25: =F26-F24 -> 2602726.73
A26: TOTAL DA PROPOSTA | F26: =I8+I16+I13+I21 -> 7940058.38
A27: NOME DO INFORMANTE: | H27: QUALIFICAÇÃO
A29: ASSINATURA: | H29: DATA:
A31: OBSERVAÇÃO:
A32: Un - unidade de medição do insumo;
A33: Qde - Quantidade do Insumo (não pode ocorrer alteração pela Licitante)
A34: CUD - Custo Unitário Direto do Insumo (sem encargos, taxas e impostos, valor não pode ser maior que o Orçado pela Codevasf)
A35: CT - Custo Total (sem encargos, taxas e impostos) - CT = Qde x CUD
A36: FatorK - Taxa de Ressarcimento de Despesas e Encargos (detalhar composição nas Planilhas "FCON2.1", "FCON2.2", "FCON3")
A37: PU - Preço Unitário (incluído encargos, taxas e impostos) - PU = CUD x FatorK
A38: PT - Preço Total (incluído encargos, taxas e impostos) - PT = Qde x PU

Sheet Modelo Proposta
A1: MODELO PROPOSTA FINANCEIRA DO PROJETO | H1: CODIGO:
H2: PFP-1
A3: NOME DA EMPRESA:
A5: PROJETO: | D5: CONTRATANTE: | H5: EDITAL:
A6: PRESTAÇÃO DE SERVIÇOS DE APOIO TÉCNICO, APOIO À FISCALIZAÇÃO E SUPERVISÃO TÉCNICA, VISANDO A IMPLANTAÇÃO E ACOMPANHAMENTO DE AÇÕES DE DESENVOLVIMENTO REGIONAL NA ÁREA DE ATUAÇÃO DA CODEVASF NOS ESTADOS DO PARÁ, TOCANTINS, GOIÁS, MATO GROSSO, AMAPÁ, CEARÁ, RIO GRANDE DO NORTE, PARÁIBA E NO DISTRITO FEDERAL. | D6: CODEVASF (SEDE)
A7: Cod. | B7: Categoria / Insumo | C7: Uni | D7: Qde | E7: CUD | F7: PU | G7: FatorK | H7: CT | I7: PT
A8: MO | B8: Mão de Obra com Vínculo | H8: =SUM(H9:H12) -> 0 | I8: =SUM(I9:I12) -> 0
A9: P1 | B9: Profissional Pleno (Coordenador) | C9: mês | D9: =DQC!D7 -> 12 | F9: =ROUND(E9*G9,2) -> 0 | G9: ='PFP2.1_FatorKa'!$E$37 -> 2.3662 | H9: =ROUND(D9*E9,2) -> 0 | I9: =ROUND(F9*D9,2) -> 0
A10: P2 | B10: Profissional Medio | C10: mês | D10: =DQC!D8 -> 12 | F10: =ROUND(E10*G10,2) -> 0 | G10: ='PFP2.1_FatorKa'!$E$37 -> 2.3662 | H10: =ROUND(D10*E10,2) -> 0 | I10: =ROUND(F10*D10,2) -> 0
A11: P3 | B11: Profissional Junior | C11: mês | D11: =DQC!D9 -> 72 | F11: 0 | G11: ='PFP2.1_FatorKa'!$E$37 -> 2.3662 | H11: 0 | I11: 0
A12: T1 | B12: Técnico Pleno | C12: mês | D12: =DQC!D10 -> 72 | F12: 0 | G12: ='PFP2.1_FatorKa'!$E$37 -> 2.3662 | H12: 0 | I12: =ROUND(F12*D12,2) -> 0
A13: MO | B13: Mão de Obra sem Vínculo | H13: =SUM(H14:H15) -> 0 | I13: =SUM(I14:I15) -> 0
A14: P2 | B14: Profissional Medio | C14: mês | D14: =DQC!D12 -> 12 | F14: =ROUND(E14*G14,2) -> 0 | G14: ='PFP2.2_FatorKb'!$E$37 -> 1.6953 | H14: =ROUND(D14*E14,2) -> 0 | I14: =ROUND(F14*D14,2) -> 0
A15: T1 | B15: Técnico Pleno | C15: mês | D15: =DQC!D13 -> 156 | F15: 0 | G15: ='PFP2.2_FatorKb'!$E$37 -> 1.6953 | H15: 0 | I15: 0
A16: DPV | B16: Diárias, Passagens e Veículos | H16: =SUM(H17:H20) -> 0 | I16: =SUM(I17:I20) -> 0
A17: D | B17: Diárias | C17: dia | D17: =DQC!D15 -> 6540 | F17: =ROUND(E17*G17,2) -> 0 | G17: =PFP3_FatorKc!$E$19 -> 1.2558 | H17: =ROUND(D17*E17,2) -> 0 | I17: =ROUND(F17*D17,2) -> 0
A18: P | B18: Passagens Aéreas (ida e volta) | C18: un | D18: =DQC!D16+DQC!D17+DQC!D18+DQC!D19+DQC!D20+DQC!D21 -> 48 | F18: =ROUND(E18*G18,2) -> 0 | G18: =PFP3_FatorKc!$E$19 -> 1.2558 | H18: 0 | I18: 0
A19: V1 | B19: Saveiro Robust 1.6 Total Flex 8V ou similar | C19: mês | D19: =DQC!D22 -> 60 | F19: =ROUND(E19*G19,2) -> 0 | G19: =PFP3_FatorKc!$E$19 -> 1.2558 | H19: =ROUND(D19*E19,2) -> 0 | I19: =ROUND(F19*D19,2) -> 0
A20: V2 | B20: Hilux CS 4x4 2.8 TDI Diesel Mec. ou similar | C20: mês | D20: =DQC!D23 -> 72 | F20: =ROUND(E20*G20,2) -> 0 | G20: =PFP3_FatorKc!$E$19 -> 1.2558 | H20: 0 | I20: 0
A21: EM | B21: Equipamentos e Materiais | H21: =SUM(H22:H23) -> 0 | I21: =SUM(I22:I23) -> 0
A22: EM1 | B22: Notebook tela 14”, HD 1TB, memória RAM de 8GB | C22: un | D22: =DQC!D25 -> 28 | F22: =ROUND(E22*G22,2) -> 0 | G22: =PFP3_FatorKc!$E$19 -> 1.2558 | H22: =ROUND(D22*E22,2) -> 0 | I22: =ROUND(F22*D22,2) -> 0
A23: EM2 | B23: Navegador GPS/ GLONASS, resolução visor de 160 X 240, tamanho de display 2,6”, memória interna 8GB, slot cartão de memória microSD, prova d'água, conexão bluetooth, com câmera 8MP | C23: un | D23: =DQC!D26 -> 11 | F23: 0 | G23: =PFP3_FatorKc!$E$19 -> 1.2558 | H23: 0 | I23: 0
A24: TOTAL DOS CUSTOS DIRETOS | F24: =H8+H16+H13+H21 -> 0
A25: TOTAL DOS ENCARGOS E DESPESAS DIVERSAS | F25: =F26-F24 -> 0
A26: TOTAL DA PROPOSTA | F26: =I8+I16+I13+I21 -> 0
A27: NOME DO INFORMANTE: | H27: QUALIFICAÇÃO
A29: ASSINATURA: | H29: DATA:
A31: OBSERVAÇÃO:
A32: Un - unidade de medição do insumo;
A33: Qde - Quantidade do Insumo (não pode ocorrer alteração pela Licitante)
A34: CUD - Custo Unitário Direto do Insumo (sem encargos, taxas e impostos, valor não pode ser maior que o Orçado pela Codevasf)
A35: CT - Custo Total (sem encargos, taxas e impostos) - CT = Qde x CUD
A36: FatorK - Taxa de Ressarcimento de Despesas e Encargos (detalhar composição nas Planilhas "FCON2.1", "FCON2.2", "FCON3")
A37: PU - Preço Unitário (incluído encargos, taxas e impostos) - PU = CUD x FatorK
A38: PT - Preço Total (incluído encargos, taxas e impostos) - PT = Qde x PU

Sheet PFP2.1_FatorKa
A1: DETALHAMENTO DOS ENCARGOS SOCIAIS: Ka | F1: CODIGO:
F2: PFP-2.1
A3: NOME DA EMPRESA:
A5: PROJETO: | C5: CONTRATANTE: | F5: EDITAL:
A6: PRESTAÇÃO DE SERVIÇOS DE APOIO TÉCNICO, APOIO À FISCALIZAÇÃO E SUPERVISÃO TÉCNICA, VISANDO A IMPLANTAÇÃO E ACOMPANHAMENTO DE AÇÕES DE DESENVOLVIMENTO REGIONAL NA ÁREA DE ATUAÇÃO DA CODEVASF NOS ESTADOS DO PARÁ, TOCANTINS, GOIÁS, MATO GROSSO, AMAPÁ, CEARÁ, RIO GRANDE DO NORTE, PARÁIBA E NO DISTRITO FEDERAL. | C6: CODEVASF (SEDE)
A7: DISCRIMINAÇÃO | E7: VALORES
E8: % | F8: R$
A9: A | B9: ENCARGOS SOCIAIS BÁSICOS | E9: =ROUND(SUM(E10:E18),4) -> 0.378 | F9: =E9*'PFP1'!$H$8 -> 763770.047
A10: A1 | B10: Seconci | E10: 0.01 | F10: =E10*'PFP1'!$H$8 -> 20205.5568
A11: A2 | B11: INSS | E11: 0.2 | F11: =E11*'PFP1'!$H$8 -> 404111.136
A12: A3 | B12: FGTS | E12: 0.08 | F12: =E12*'PFP1'!$H$8 -> 161644.4544
A13: A4 | B13: Incra | E13: 0.002 | F13: =E13*'PFP1'!$H$8 -> 4041.11136
A14: A5 | B14: Salário Educação | E14: 0.025 | F14: =E14*'PFP1'!$H$8 -> 50513.892
A15: A6 | B15: Sebrae | E15: 0.006 | F15: =E15*'PFP1'!$H$8 -> 12123.33408
A16: A7 | B16: Seguro contra acidente | E16: 0.03 | F16: =E16*'PFP1'!$H$8 -> 60616.6704
A17: A8 | B17: Senai | E17: 0.01 | F17: =E17*'PFP1'!$H$8 -> 20205.5568
A18: A9 | B18: Sesi | E18: 0.015 | F18: =E18*'PFP1'!$H$8 -> 30308.3352
A19: B | B19: ENCARGOS SOCIAIS QUE RECEBEM INCIDÊNCIA DE "A" | E19: =ROUND(SUM(E20:E26),4) -> 0.1965 | F19: =E19*'PFP1'!$H$8 -> 397039.1911
A20: B1 | B20: 13º Salário | E20: 0.0833 | F20: =E20*'PFP1'!$H$8 -> 168312.2881
A21: B2 | B21: Auxilio Enfermidade | E21: 0.0071 | F21: =E21*'PFP1'!$H$8 -> 14345.94533
A22: B3 | B22: Licença Paternidade | E22: 0.0006 | F22: =E22*'PFP1'!$H$8 -> 1212.333408
A23: B4 | B23: Faltas Justificadas | E23: 0.0056 | F23: =E23*'PFP1'!$H$8 -> 11315.11181
A24: B5 | B24: Auxílio Acidente de Trabalho | E24: 0.0009 | F24: =E24*'PFP1'!$H$8 -> 1818.500112
A25: B6 | B25: Férias Gozadas | E25: 0.0988 | F25: =E25*'PFP1'!$H$8 -> 199630.9012
A26: B7 | B26: Salário Maternidade | E26: 0.0002 | F26: =E26*'PFP1'!$H$8 -> 404.111136
A27: C | B27: ENCARGOS SOCIAIS QUE NÃO RECEBEM INCIDÊNCIA DE "A" | E27: =ROUND(SUM(E28:E32),4) -> 0.0828 | F27: =E27*'PFP1'!$H$8 -> 167302.0103
A28: C1 | B28: Aviso Prévio Indenizado | E28: 0.031 | F28: =E28*'PFP1'!$H$8 -> 62637.22608
A29: C2 | B29: Aviso Prévio Trabalhado | E29: 0.0007 | F29: =E29*'PFP1'!$H$8 -> 1414.388976
A30: C3 | B30: Férias Indenizadas | E30: 0.0104 | F30: =E30*'PFP1'!$H$8 -> 21013.77907
A31: C4 | B31: Depósito Rescisão Sem Justa Causa | E31: 0.0381 | F31: =E31*'PFP1'!$H$8 -> 76983.17141
A32: C5 | B32: Indenização Adicional | E32: 0.0026 | F32: =E32*'PFP1'!$H$8 -> 5253.444768
A33: D | B33: REINCIDÊNCIAS | E33: =ROUND(SUM(E34:E35),4) -> 0.077 | F33: =E33*'PFP1'!$H$8 -> 155582.7874
A34: D1 | B34: Reincidência de "A" sobre "B" | E34: =ROUND(E9*E19,4) -> 0.0743 | F34: =E34*'PFP1'!$H$8 -> 150127.287
A35: D2 | B35: Reincidência de "A" sobre Aviso Prévio Trabalhado e reincidência do FGTS sobre aviso prévio indenizado | E35: =(E29*E9)+(E28*E12) -> 0.0027446 | F35: =E35*'PFP1'!$H$8 -> 5545.617119
A36: K1 | B36: ENCARGOS SOCIAIS | E36: =ROUND(E9+E19+E27+E33,4) -> 0.7343 | F36: =E36*'PFP1'!$H$8 -> 1483694.036
A37: Ka | B37: TAXA DE RESSARCIMENTO DE DESPESAS E ENCARGOS SOBRE M.O. | E37: =ROUND((1+E36+PFP3_FatorKc!E15)*(1+PFP3_FatorKc!E14)*(1+PFP3_FatorKc!E10),4) -> 2.3662
A38: NOME DO INFORMANTE: | E38: QUALIFICAÇÃO
A40: ASSINATURA: | E40: DATA:
A42: OBSERVAÇÃO:
A43: 1 - DISCRIMINAR OS ENCARGOS SOCIAIS COM SEUS RESPECTIVOS PERCENTUAS TOTALIZANDO OS MESMOS.
A44: 2 - APLICAR O % TOTAL P/ CALCULAR OS E. SOCIAIS INCIDENTES NA MÃO-DE-OBRA COM VÍNCULO PERMANENTE
A45: Ka - Taxa de Ressarcimento de Despesas e Encargos sobre a Mão de Obra COM VINCULO (incide apenas no Insumo Codigo M.O.)
A46: Ka = (1 + K1 + K2) x (1 + K3) x (1 + K4)

Sheet PFP2.2_FatorKb
A1: DETALHAMENTO DOS ENCARGOS SOCIAIS: Kb | F1: CODIGO:
F2: PFP-2.2
A3: NOME DA EMPRESA:
A5: PROJETO: | C5: CONTRATANTE: | F5: EDITAL:
A6: PRESTAÇÃO DE SERVIÇOS DE APOIO TÉCNICO, APOIO À FISCALIZAÇÃO E SUPERVISÃO TÉCNICA, VISANDO A IMPLANTAÇÃO E ACOMPANHAMENTO DE AÇÕES DE DESENVOLVIMENTO REGIONAL NA ÁREA DE ATUAÇÃO DA CODEVASF NOS ESTADOS DO PARÁ, TOCANTINS, GOIÁS, MATO GROSSO, AMAPÁ, CEARÁ, RIO GRANDE DO NORTE, PARÁIBA E NO DISTRITO FEDERAL. | C6: CODEVASF (SEDE)
A7: DISCRIMINAÇÃO | E7: VALORES
E8: % | F8: R$
A9: A | B9: ENCARGOS SOCIAIS BÁSICOS | E9: =ROUND(SUM(E10:E18),4) -> 0.2 | F9: =E9*'PFP1'!$H$13 -> 194147.712
A10: A1 | B10: Seconci | E10: 0 | F10: =E10*'PFP1'!$H$13 -> 0
A11: A2 | B11: INSS | E11: 0.2 | F11: =E11*'PFP1'!$H$13 -> 194147.712
A12: A3 | B12: FGTS | E12: 0 | F12: =E12*'PFP1'!$H$13 -> 0
A13: A4 | B13: Incra | E13: 0 | F13: =E13*'PFP1'!$H$13 -> 0
A14: A5 | B14: Salário Educação | E14: 0 | F14: =E14*'PFP1'!$H$13 -> 0
A15: A6 | B15: Sebrae | E15: 0 | F15: =E15*'PFP1'!$H$13 -> 0
A16: A7 | B16: Seguro contra acidente | E16: 0 | F16: =E16*'PFP1'!$H$13 -> 0
A17: A8 | B17: Senai | E17: 0 | F17: =E17*'PFP1'!$H$13 -> 0
A18: A9 | B18: Sesi | E18: 0 | F18: =E18*'PFP1'!$H$13 -> 0
A19: B | B19: ENCARGOS SOCIAIS QUE RECEBEM INCIDÊNCIA DE "A" | E19: =ROUND(SUM(E20:E26),4) -> 0 | F19: =E19*'PFP1'!$H$13 -> 0
A20: B1 | B20: 13º Salário | E20: 0 | F20: =E20*'PFP1'!$H$13 -> 0
A21: B2 | B21: Auxilio Enfermidade | E21: 0 | F21: =E21*'PFP1'!$H$13 -> 0
A22: B3 | B22: Licença Paternidade | E22: 0 | F22: =E22*'PFP1'!$H$13 -> 0
A23: B4 | B23: Faltas Justificadas | E23: 0 | F23: =E23*'PFP1'!$H$13 -> 0
A24: B5 | B24: Auxílio Acidente de Trabalho | E24: 0 | F24: =E24*'PFP1'!$H$13 -> 0
A25: B6 | B25: Férias Gozadas | E25: 0 | F25: =E25*'PFP1'!$H$13 -> 0
A26: B7 | B26: Salário Maternidade | E26: 0 | F26: =E26*'PFP1'!$H$13 -> 0
A27: C | B27: ENCARGOS SOCIAIS QUE NÃO RECEBEM INCIDÊNCIA DE "A" | E27: =ROUND(SUM(E28:E32),4) -> 0 | F27: =E27*'PFP1'!$H$13 -> 0
A28: C1 | B28: Aviso Prévio Indenizado | E28: 0 | F28: =E28*'PFP1'!$H$13 -> 0
A29: C2 | B29: Aviso Prévio Trabalhado | E29: 0 | F29: =E29*'PFP1'!$H$13 -> 0
A30: C3 | B30: Férias Indenizadas | E30: 0 | F30: =E30*'PFP1'!$H$13 -> 0
A31: C4 | B31: Depósito Rescisão Sem Justa Causa | E31: 0 | F31: =E31*'PFP1'!$H$13 -> 0
A32: C5 | B32: Indenização Adicional | E32: 0 | F32: =E32*'PFP1'!$H$13 -> 0
A33: D | B33: REINCIDÊNCIAS | E33: =ROUND(SUM(E34:E35),4) -> 0 | F33: =E33*'PFP1'!$H$13 -> 0
A34: D1 | B34: Reincidência de "A" sobre "B" | E34: =ROUND(E9*E19,4) -> 0 | F34: =E34*'PFP1'!$H$13 -> 0
A35: D2 | B35: Reincidência de "A" sobre Aviso Prévio Trabalhado e reincidência do FGTS sobre aviso prévio indenizado | E35: =ROUND(E9*E29,4)+ROUND(E28*E12,4) -> 0 | F35: =E35*'PFP1'!$H$13 -> 0
A36: K1 | B36: ENCARGOS SOCIAIS | E36: =ROUND(E9+E19+E27+E33,4) -> 0.2 | F36: =E36*'PFP1'!$H$13 -> 194147.712
A37: Kb | B37: TAXA DE RESSARCIMENTO DE DESPESAS E ENCARGOS SOBRE M.O. | E37: =ROUND((1+E36+PFP3_FatorKc!E15)*(1+PFP3_FatorKc!E14)*(1+PFP3_FatorKc!E10),4) -> 1.6953
A38: NOME DO INFORMANTE: | E38: QUALIFICAÇÃO
A40: ASSINATURA: | E40: DATA:
A42: OBSERVAÇÃO:
A43: 1 - DISCRIMINAR OS ENCARGOS SOCIAIS COM SEUS RESPECTIVOS PERCENTUAS TOTALIZANDO OS MESMOS.
A44: 2 - APLICAR O % TOTAL P/ CALCULAR OS E. SOCIAIS INCIDENTES NA MÃO-DE-OBRA SEM VÍNCULO PERMANENTE
A45: Kb - Taxa de Ressarcimento de Despesas e Encargos sobre a Mão de Obra SEM VINCULO (incide apenas no Insumo Codigo M.O.)
A46: Kb = (1 + K1 + K2) x (1 + K3) x (1 + K4)

Sheet PFP3_FatorKc
A1: DESPESAS FISCAIS E CUSTOS DIVERSOS: Kc | F1: CODIGO:
F2: PFP-3
A3: NOME DA EMPRESA:
A5: PROJETO: | C5: CONTRATANTE: | F5: EDITAL:
A6: PRESTAÇÃO DE SERVIÇOS DE APOIO TÉCNICO, APOIO À FISCALIZAÇÃO E SUPERVISÃO TÉCNICA, VISANDO A IMPLANTAÇÃO E ACOMPANHAMENTO DE AÇÕES DE DESENVOLVIMENTO REGIONAL NA ÁREA DE ATUAÇÃO DA CODEVASF NOS ESTADOS DO PARÁ, TOCANTINS, GOIÁS, MATO GROSSO, AMAPÁ, CEARÁ, RIO GRANDE DO NORTE, PARÁIBA E NO DISTRITO FEDERAL. | C6: CODEVASF (SEDE)
A7: DISCRIMINAÇÃO 1 | D7: VALORES
D8: % preço | E8: % custo | F8: R$
A9: K4 | B9: DESPESAS FISCAIS | D9: K' (%)2 | E9: K (%)3
D10: =ROUND(D11+D12+D13,4) -> 0.124 | E10: =ROUND(E11+E12+E13,4) -> 0.1416 | F10: =E10*SUM('PFP1'!$H$8*(1+'PFP2.1_FatorKa'!$E$36)+'PFP1'!$H$13*(1+'PFP2.2_FatorKb'!$E$36)+'PFP1'!$H$15+'PFP1'!$H$20+PFP3_FatorKc!$F$15+PFP3_FatorKc!$F$14) -> 993461.9225
A11: 1 | B11: ISS | D11: 0.05 | E11: =ROUND((1/(1-$D$10))*D11,4) -> 0.0571 | F11: =E11*SUM('PFP1'!$H$8*(1+'PFP2.1_FatorKa'!$E$36)+'PFP1'!$H$13*(1+'PFP2.2_FatorKb'!$E$36)+'PFP1'!$H$15+'PFP1'!$H$20+PFP3_FatorKc!$F$15+PFP3_FatorKc!$F$14) -> 400612.117
A12: 2 | B12: PIS - aliquota efetiva com percentual-desconto de 20% | D12: =ROUND(1.65%*0.8,4) -> 0.0132 | E12: =ROUND((1/(1-$D$10))*D12,4) -> 0.0151 | F12: =E12*SUM('PFP1'!$H$8*(1+'PFP2.1_FatorKa'!$E$36)+'PFP1'!$H$13*(1+'PFP2.2_FatorKb'!$E$36)+'PFP1'!$H$15+'PFP1'!$H$20+PFP3_FatorKc!$F$15+PFP3_FatorKc!$F$14) -> 105941.2078
A13: 3 | B13: COFINS - aliquota efetiva com percentual-desconto de 20% | D13: =ROUND(7.6%*0.8,4) -> 0.0608 | E13: 0.0694 | F13: =E13*SUM('PFP1'!$H$8*(1+'PFP2.1_FatorKa'!$E$36)+'PFP1'!$H$13*(1+'PFP2.2_FatorKb'!$E$36)+'PFP1'!$H$15+'PFP1'!$H$20+PFP3_FatorKc!$F$15+PFP3_FatorKc!$F$14) -> 486908.5976
A14: K3 | B14: REMUNERAÇÃO DA EMPRESA (LUCRO) | E14: 0.1 | F14: =E14*SUM('PFP1'!$H$8*(1+'PFP2.1_FatorKa'!$E$36)+'PFP1'!$H$13*(1+'PFP2.2_FatorKb'!$E$36)+'PFP1'!$H$15+'PFP1'!$H$20+PFP3_FatorKc!$F$15) -> 637815.8208
A15: K2 | B15: CUSTOS DA ADMINISTRAÇÃO CENTRAL | E15: =ROUND(SUM(E16:E18),4) -> 0.15 | F15: =ROUND(E15*('PFP1'!$H$8+'PFP1'!$H$13),2) -> 448694.14
A16: 4 | B16: Custos da administração central da empresa (diretoria, pessoal técnico de apoio e pessoal administrativo não diretamente vinculado à prestação dos serviços) | E16: 0.1 | F16: =ROUND(E16*('PFP1'!$H$8+'PFP1'!$H$13),2) -> 299129.42
A17: 5 | B17: Outras despesas que afetam o custo de produção como treinamento, biblioteca, programa de qualidade, programa de benefícios, auditoria interna e externa | E17: 0.03 | F17: =ROUND(E17*('PFP1'!$H$8+'PFP1'!$H$13),2) -> 89738.83
A18: 6 | B18: Despesas fixas e variaveis com patrimônio, aluguéis, comunicação, manutenção e transporte não diretamente relacionados com o custo direto dos serviços | E18: 0.02 | F18: =ROUND(E18*('PFP1'!$H$8+'PFP1'!$H$13),2) -> 59825.88
A19: Kc | B19: TAXA RESSARCIMENTO DE DESPESAS SOBRE CUSTOS DIVERSOS | E19: =ROUND((1+E14)*(1+E10),4) -> 1.2558
A20: NOME DO INFORMANTE: | E20: QUALIFICAÇÃO:
A22: ASSINATURA: | E22: DATA:
A24: Observação:
A25: 1 - RELACIONAR OS CUSTOS DE ADMINISTRAÇÃO COM RESPECTIVOS PERCENTUAIS INCIDENTES NA MÃO -DE-OBRA
A26: 1 - DISCRIMINAR OS TRIBUTOS QUE INCIDEM SOBRE OS CUSTOS DA PRESTAÇÃO DOS SERVIÇOS
A27: 2 - K4 = INDICAR % DE CADA TRIBUTO E A SOMA DOS MESMOS (ex: ISS 5% + PIS 1,65% + COFINS 7,60% = 14,25%)
A28: 3 - PIS e COFINS, Regime de Incidencia Acumulativa (0,65% e 3,00% - sem percentual de desconto) ou em Regime de Incidencia Não Acumulativa (1,65% e 7,60% - aplicável percentual de desconto) de acordo com a forma de apuração do lucro no IRPJ. APRESENTAR COMPROVANTES de aproveitamento de créditos tributários dos últimos 12 meses em caso de aplicação de "percentual de desconto".
A29: 4 - AS DESPESAS FISCAIS (K4) INCIDEM SOBRE O TOTAL DA FATURA E NÃO SOBRE OS CUSTOS INCORRIDOS,
A30: DEVENDO SER CALCULADO O K4' APLICANDO-SE A SEGUINTE FÓRMULA:
A31: K4' = { [ 1 / ( 1 - K4) ] - 1 } x 100
A32: =CONCATENATE(" K4' = { [ 1 / ( 1 - ",D10," ) ] - 1 } x 100") -> K4' = { [ 1 / ( 1 - 0,124 ) ] - 1 } x 100
A33: Kc - Taxa de Ressarcimento de Despesas sobre Custos Diversos (incide sobre os Insumos Codigo DP e EQ)
A34: Kc = (1 + K3) x (1 + K4)
A35: K2 - Incide sobre o Custo Total (CT) da Mão de Obra (MO)
A36: K3 - Incide sobre o Custo Total (CT) Mão de Obra com encargos (MO x Ka ou Kb), demais Custos (DP e EQ), e Custos da Administração Central (K2)
A37: K4 - Incide sobre o Custo Total (CT) Mão de Obra com encargos (MO x Ka ou Kb), demais Custos (DP e EQ), e Custos da Administração Central (K2) e Lucro (K3)

Sheet DQC
A1: DETALHAMENTO DO QUANTITATIVOS CONTRATADOS | Q1: CODIGO:
Q2: DQC
A3: INSUMOS POR ESTADO/PRODUTO
A5: Cod. | B5: Categoria / Insumo | C5: Uni | D5: Qde | E5: CUD | F5: PU | G5: FatorK | H5: CT | I5: PT | J5: SEDE | K5: A-PA | L5: A-GO/MT/DF | M5: A-TO | N5: A-AP | O5: A-CE | P5: A-RN/PB | Q5: Total
A6: MO | B6: Mão de Obra com Vínculo | H6: =SUM(H7:H10) -> 2020555.68 | I6: =SUM(I7:I10) -> 3337373.52
A7: P1 | B7: Profissional Pleno (Coordenador) | C7: mês | D7: =Q7 -> 12 | E7: 15304.96 | F7: =ROUND(E7*G7,2) -> 36214.6 | G7: ='PFP2.1_FatorKa'!$E$37 -> 2.3662 | H7: =ROUND(D7*E7,2) -> 183659.52 | I7: =ROUND(F7*D7,2) -> 434575.2 | J7: 12 | Q7: =SUM(J7:P7) -> 12
A8: P2 | B8: Profissional Médio | C8: mês | D8: =Q8 -> 12 | E8: 11711.04 | F8: =ROUND(E8*G8,2) -> 27710.66 | G8: ='PFP2.1_FatorKa'!$E$37 -> 2.3662 | H8: =ROUND(D8*E8,2) -> 140532.48 | I8: =ROUND(F8*D8,2) -> 332527.92 | J8: 12 | Q8: =SUM(J8:P8) -> 12
A9: P3 | B9: Profissional Junior | C9: mês | D9: 72 | E9: 9724 | F9: =ROUND(E9*G9,2) -> 23008.93 | G9: ='PFP2.1_FatorKa'!$E$37 -> 2.3662 | H9: =ROUND(D9*E9,2) -> 700128 | I9: =ROUND(F9*D9,2) -> 1656642.96 | K9: 12 | L9: 12 | M9: 12 | N9: 12 | O9: 12 | P9: 12 | Q9: =SUM(J9:P9) -> 72
A10: T1 | B10: Técnico Pleno | C10: mês | D10: 72 | E10: 5362.72 | F10: =ROUND(E10*G10,2) -> 12689.27 | G10: ='PFP2.1_FatorKa'!$E$37 -> 2.3662 | H10: 996235.68 | I10: =ROUND(F10*D10,2) -> 913627.44 | K10: 12 | L10: 12 | M10: 12 | N10: 12 | O10: 12 | P10: 12 | Q10: =SUM(J10:P10) -> 72
A11: MO | B11: Mão de Obra sem Vínculo | H11: =SUM(H12:H13) -> 970738.56 | I11: =SUM(I12:I13) -> 1656506.28
A12: P2 | B12: Profissional Médio | C12: mês | D12: 12 | E12: 11711.04 | F12: =ROUND(E12*G12,2) -> 19853.73 | G12: ='PFP2.2_FatorKb'!$E$37 -> 1.6953 | H12: 134154.24 | I12: =ROUND(F12*D12,2) -> 238244.76 | J12: 12 | Q12: 12
A13: T1 | B13: Técnico Pleno | C13: mês | D13: 156 | E13: 5362.72 | F13: 9091.42 | G13: ='PFP2.2_FatorKb'!$E$37 -> 1.6953 | H13: =ROUND(D13*E13,2) -> 836584.32 | I13: 1418261.52 | K13: 24 | L13: 36 | M13: 36 | N13: 12 | O13: 24 | P13: 24 | Q13: 156
A14: DPV | B14: Diárias, Passagens e Veículos | H14: =SUM(H15:H23) -> 2217229.28 | I14: =SUM(I15:I23) -> 2784421.36
A15: D1 | B15: Diárias | C15: dia | D15: =Q15 -> 6540 | E15: 239 | F15: =ROUND(E15*G15,2) -> 300.14 | G15: =PFP3_FatorKc!$E$19 -> 1.2558 | H15: =ROUND(D15*E15,2) -> 1563060 | I15: =ROUND(F15*D15,2) -> 1962915.6 | J15: =(J8+J12)*10 -> 240 | K15: =(K9+K13+K10)*21 -> 1008 | L15: 1260 | M15: 1260 | N15: 756 | O15: 1008 | P15: 1008 | Q15: =SUM(J15:P15) -> 6540
A16: P1 | B16: Passagens Aéreas (ida e volta) - Brasília -Belém/PA (fevereiro e junho) | C16: un | D16: =Q16 -> 8 | E16: 627 | F16: =ROUND(E16*G16,2) -> 787.39 | G16: =PFP3_FatorKc!$E$19 -> 1.2558 | H16: =ROUND(D16*E16,2) -> 5016 | I16: =ROUND(F16*D16,2) -> 6299.12 | K16: =2*4 -> 8 | Q16: 8
A17: P2 | B17: Passagens Aéreas (ida e volta) - Brasília -Cuiabá/MT(março e agosto) | C17: un | D17: 8 | E17: 280.67 | F17: =ROUND(E17*G17,2) -> 352.47 | G17: =PFP3_FatorKc!$E$19 -> 1.2558 | H17: =ROUND(D17*E17,2) -> 2245.36 | I17: =ROUND(F17*D17,2) -> 2819.76 | L17: =2*4 -> 8 | Q17: 8
A18: P3 | B18: Passagens Aéreas (ida e volta) - Brasília - Palmas/TO (feveiro e abril) | C18: un | D18: 8 | E18: 737.5 | F18: 926.15 | G18: =PFP3_FatorKc!$E$19 -> 1.2558 | H18: 5900 | I18: 7409.2 | M18: =2*4 -> 8 | Q18: 8
A19: P4 | B19: Passagens Aéreas (ida e volta) - Brasília - Macapá/AP (abril e agosto) | C19: un | D19: 8 | E19: 679.17 | F19: 852.9 | G19: =PFP3_FatorKc!$E$19 -> 1.2558 | H19: 5433.36 | I19: 6823.2 | N19: =2*4 -> 8 | Q19: 8
A20: P5 | B20: Passagens Aéreas (ida e volta) - Brasília -Fortaleza/CE (setembro e novembro) | C20: un | D20: 8 | E20: 1098.43 | F20: 1379.41 | G20: =PFP3_FatorKc!$E$19 -> 1.2558 | H20: 8787.44 | I20: 11035.28 | O20: =2*4 -> 8 | Q20: 8
A21: P6 | B21: Passagens Aéreas (ida e volta) - Brasília -Natal/RN e João Pessoa/PB (maio e setembro) | C21: un | D21: 8 | E21: 541.17 | F21: 679.6 | G21: =PFP3_FatorKc!$E$19 -> 1.2558 | H21: 4329.36 | I21: =ROUND(F21*D21,2) -> 5436.8 | P21: =2*4 -> 8 | Q21: 8
A22: V1 | B22: Saveiro Robust 1.6 Total Flex 8V ou similar | C22: mês | D22: =Q22 -> 60 | E22: ='PFP1'!E19 -> 3311.9 | F22: =ROUND(E22*G22,2) -> 4159.08 | G22: =PFP3_FatorKc!$E$19 -> 1.2558 | H22: 198714 | I22: 249544.8 | K22: 12 | L22: 12 | M22: 12 | O22: 12 | P22: 12 | Q22: =SUM(K22:P22) -> 60
A23: V2 | B23: Hilux CS 4x4 2.8 TDI Diesel Mec. ou similar | C23: mês | D23: =Q23 -> 72 | E23: ='PFP1'!E20 -> 5885.33 | F23: =ROUND(E23*G23,2) -> 7390.8 | G23: =PFP3_FatorKc!$E$19 -> 1.2558 | H23: =ROUND(D23*E23,2) -> 423743.76 | I23: =ROUND(F23*D23,2) -> 532137.6 | K23: 12 | L23: 12 | M23: 12 | N23: 12 | O23: 12 | P23: 12 | Q23: 72
A24: EM | B24: Equipamentos e Materiais | H24: =SUM(H25:H26) -> 128808.13 | I24: =SUM(I25:I26) -> 161757.22
A25: EM1 | B25: Notebook tela 14”, HD 1TB, memória RAM de 8GB | C25: un | D25: =Q25 -> 28 | E25: 2752.31 | F25: =ROUND(E25*G25,2) -> 3456.35 | G25: =PFP3_FatorKc!$E$19 -> 1.2558 | H25: =ROUND(D25*E25,2) -> 77064.68 | I25: =ROUND(F25*D25,2) -> 96777.8 | J25: =SUM(J7:J10,J12:J13)/12 -> 3 | K25: 4 | L25: 5 | M25: 5 | N25: 3 | O25: 4 | P25: 4 | Q25: =SUM(J25:P25) -> 28
A26: EM2 | B26: Navegador GPS/ GLONASS, resolução visor de 160 X 240, tamanho de display 2,6”, memória interna 8GB, slot cartão de memória microSD, prova d'água, conexão bluetooth, com câmera 8MP | C26: un | D26: 11 | E26: 4703.95 | F26: 5907.22 | G26: =PFP3_FatorKc!$E$19 -> 1.2558 | H26: 51743.45 | I26: 64979.42 | K26: 2 | L26: 2 | M26: 2 | N26: 1 | O26: 2 | P26: 2 | Q26: 11
A27: TOTAL DOS CUSTOS DIRETOS | F27: =H6+H14+H11+H24 -> 5337331.65
A28: TOTAL DOS ENCARGOS E DESPESAS DIVERSAS | F28: =F29-F27 -> 2602726.73
A29: TOTAL DA PROPOSTA | F29: =I6+I14+I11+I24 -> 7940058.38
A30: NOME DO INFORMANTE: | H30: QUALIFICAÇÃO:
A32: ASSINATURA: | H32: DATA:
A34: OBSERVAÇÃO:
A35: Uni - unidade de medição do insumo
A36: Qde - Quantidade do Insumo (não pode ocorrer alteração pela Licitante)
A37: CUD - Custo Unitário Direto do Insumo (sem encargos, taxas e impostos, valor não pode ser maior que o Orçado pela Codevasf)
A38: CT - Custo Total (sem encargos, taxas e impostos) - CT = Qde x CUD
A39: FatorK - Taxa de Ressarcimento de Despesas e Encargos (detalhar composição nas Planilhas "FCON2.1", "FCON2.2", "FCON3")
A40: PU - Preço Unitário (incluído encargos, taxas e impostos) - PU = CUD x FatorK
A41: PT - Preço Total (incluído encargos, taxas e impostos) - PT = Qde x PU

Sheet CT_OS
A1: ORDEM DE SERVIÇO | H1: CODIGO:
H2: O.S.
A3: NOME DA EMPRESA: | H3: N° O.S.:
A5: PROJETO: | D5: CONTRATANTE: | H5: CONTRATO:
A6: PRESTAÇÃO DE SERVIÇOS DE APOIO TÉCNICO, APOIO À FISCALIZAÇÃO E SUPERVISÃO TÉCNICA, VISANDO A IMPLANTAÇÃO E ACOMPANHAMENTO DE AÇÕES DE DESENVOLVIMENTO REGIONAL NA ÁREA DE ATUAÇÃO DA CODEVASF NOS ESTADOS DO PARÁ, TOCANTINS, GOIÁS, MATO GROSSO, AMAPÁ, CEARÁ, RIO GRANDE DO NORTE, PARÁIBA E NO DISTRITO FEDERAL. | D6: CODEVASF (SEDE)
A7: Cod. | B7: Produtos/Atividades | D7: Tipo | F7: Prazo | H7: Obs
A17: Cod. | B17: Categoria / Insumo | C17: Uni | D17: Qde | E17: CUD | F17: PU | G17: FatorK | H17: CT | I17: PT
A18: MO | B18: Mão de Obra com Vínculo | H18: =SUM(H19:H22) -> 0 | I18: =SUM(I19:I22) -> 0
A19: P1 | B19: Profissional Pleno (Coordenador) | C19: mês
A20: P2 | B20: Profissional Medio | C20: mês
A21: P3 | B21: Profissional Junior | C21: mês
A22: T1 | B22: Tecnico Pleno | C22: mês
A23: MO | B23: Mão de Obra sem Vínculo | H23: =SUM(H21:H25) -> 0 | I23: =SUM(I21:I25) -> 0
A24: P2 | B24: Profissional Medio | C24: mês
A25: T1 | B25: Tecnico Pleno | C25: mês
A26: DPV | B26: Diárias, Passagens E Veículos | H26: =SUM(H27:H30) -> 0 | I26: =SUM(I27:I30) -> 0
A27: DPV | B27: Diárias | C27: dia
A28: P | B28: Passagens Aéreas (ida e volta) | C28: un
A29: V1 | B29: Saveiro Robust 1.6 Total Flex 8V ou similar | C29: mês
A30: V2 | B30: Hilux CS 4x4 2.8 TDI Diesel Mec. ou similar | C30: mês
A31: EM | B31: Equipamentos e Materiais | H31: =SUM(H32:H33) -> 0 | I31: =SUM(I32:I33) -> 0
A32: EM1 | B32: Notebook | C32: un
A33: EM2 | B33: Navegador GPS | C33: un
A34: TOTAL DOS CUSTOS DIRETOS | F34: =H18+H26+H23+H31 -> 0
A35: TOTAL DOS ENCARGOS E DESPESAS DIVERSAS | F35: =F36-F34 -> 0
A36: TOTAL DA PROPOSTA | F36: =I18+I26+I23+I31 -> 0
A37: NOME DO INFORMANTE: | H37: QUALIFICAÇÃO
A39: ASSINATURA: | H39: DATA:
A41: OBSERVAÇÃO:
A42: Un - unidade de medição do insumo;
A43: Qde - Quantidade do Insumo (não pode ocorrer alteração pela Licitante)
A44: CUD - Custo Unitário Direto do Insumo (sem encargos, taxas e impostos, valor não pode ser maior que o Orçado pela Codevasf)
A45: CT - Custo Total (sem encargos, taxas e impostos) - CT = Qde x CUD
A46: FatorK - Taxa de Ressarcimento de Despesas e Encargos (detalhar composição nas Planilhas "FCON2.1", "FCON2.2", "FCON3")
A47: PU - Preço Unitário (incluído encargos, taxas e impostos) - PU = CUD x FatorK
A48: PT - Preço Total (incluído encargos, taxas e impostos) - PT = Qde x PU

Sheet CT_RAM
A1: RELATÓRIO DE ACOMPANHAMENTO E MEDIÇÃO | H1: CODIGO:
H2: RAM
A3: NOME DA EMPRESA: | H3: N° RAM:
A5: PROJETO: | D5: CONTRATANTE: | H5: CONTRATO:
A6: PRESTAÇÃO DE SERVIÇOS DE APOIO TÉCNICO, APOIO À FISCALIZAÇÃO E SUPERVISÃO TÉCNICA, VISANDO A IMPLANTAÇÃO E ACOMPANHAMENTO DE AÇÕES DE DESENVOLVIMENTO REGIONAL NA ÁREA DE ATUAÇÃO DA CODEVASF NOS ESTADOS DO PARÁ, TOCANTINS, GOIÁS, MATO GROSSO, AMAPÁ, CEARÁ, RIO GRANDE DO NORTE, PARÁIBA E NO DISTRITO FEDERAL. | D6: CODEVASF (SEDE)
A7: Cod. | B7: Produtos Demandados | D7: Tipo | F7: Prazo | H7: Obs
A16: Cod. | B16: Produtos Executados | D16: Tipo | F16: Prazo | H16: Obs
A25: Cod. | B25: Infrações Constatadas | D25: Tipo | F25: Sanção | H25: Valor
A30: N° de Atividades Demandadas
A31: N° de Atividades Entregues
A32: Grau de Execução das Atividades Programadas (GEAP)
A33: Fator de Ajuste no Pagamento
A34: Multas e descontos
A35: TOTAL DA ORDEM DE SERVIÇO
A36: TOTAL DA ORDEM DE PAGAMENTO
A37: FISCAL: | H37: SETOR:
A39: ASSINATURA: | H39: DATA:
A41: OBSERVAÇÕES:

Sheet CT_CV
A1: FICHA CURRICULAR DA EQUIPE TÉCNICA | G1: CODIGO:
G2: CV
A3: NOME DA EMPRESA:
A5: PROJETO: | D5: CONTRATANTE: | G5: EDITAL:
A6: PRESTAÇÃO DE SERVIÇOS DE APOIO TÉCNICO, APOIO À FISCALIZAÇÃO E SUPERVISÃO TÉCNICA, VISANDO A IMPLANTAÇÃO E ACOMPANHAMENTO DE AÇÕES DE DESENVOLVIMENTO REGIONAL NA ÁREA DE ATUAÇÃO DA CODEVASF NOS ESTADOS DO PARÁ, TOCANTINS, GOIÁS, MATO GROSSO, AMAPÁ, CEARÁ, RIO GRANDE DO NORTE, PARÁIBA E NO DISTRITO FEDERAL. | D6: CODEVASF (SEDE)
A7: NOME DO PROFISSIONAL:
A9: ATUAÇÃO NO PROJETO: | C9: FORMAÇÃO PRINCIPAL: | E9: NASCIMENTO: | G9: NACIONALIDADE:
A11: FORMAÇÃO
A12: ESCOLARIDADE | C12: ENTIDADE | E12: CIDADE | G12: DURAÇÃO | H12: ANO CONCL.
A13: Técnico (título) | C13: Escola | E13: Cidade | G13: X anos | H13: AAAA
A14: Superior (título) | C14: Universidade | E14: Cidade | G14: X anos | H14: AAAA
A15: Especialização (título) | C15: Universidade | E15: Cidade | G15: X anos | H15: AAAA
A16: Mestrado (título) | C16: Universidade | E16: Cidade | G16: X anos | H16: AAAA
A17: Doutorado (título) | C17: Universidade | E17: Cidade | G17: X anos | H17: AAAA
A18: PERIODO | B18: CAPACIDADE TÉCNICA - EXPERIÊNCIA PROFISSIONAL
A19: (MM/AA a MM/AA) | B19: (Empresa, cargo ou função, cidade)
A25: CAT | B25: CAPACIDADE TÉCNICA - SERVIÇO OU OBRA
A26: (nº da ART ou CAT) | B26: (Objeto resumido, quantificação, contratante, cidade)
A32: ANO | B32: CAPACIDADE TECNOLÓGICA - CERTIFICADO
A33: (AAAA) | B33: (Nome do curso, empresa de treinamento, carga horaria em hs, cidade)
A38: CONCORDO EM PARTICIPAR DESTE OBJETO (ASSINATURA): | E38: Nº DO REGISTRO PROFISSIONAL:
A40: NOME DO INFORMANTE: | G40: QUALIFICAÇÃO
A42: ASSINATURA: | G42: DATA:
A44: OBSERVAÇÃO:
A45: 1 – PREENCHER UMA FICHA PARA CADA PROFISSIONAL DA EQUIPE CHAVE (ESPECIALISTAS) E COMPLEMENTAR (ANALISTAS)
A46: 2 – JUNTAR COMPROVANTES DE ESCOLARIDADE
A47: 3 – JUNTAR OS COMPROVANTES DA EXP. PROFISSIONAL, CERTIFICADOS PELA UNIDADE PROFISSIONAL COMPETENTE
A48: 4 – JUNTAR OS COMPROVANTES DE CAPACIDADE TECNICA, RELATIVO AOS CAT DE SERVIÇOS SIMILARES OU CORRELATOS, CONFORME, ITEM 10.
A49: 5 – JUNTAR OS COMPROVANTES DE CAPACIDADE TECNOLOGICA, CONFORME ITEM 10.
A50: 6 – ITENS EM VERMELHO SÃO APENAS INSTRUÇÃO DE PREENCHIMENTO E DEVEM SER APAGADOS.
